bitfinex/quotes_SOLUSD_20241205
["timestamp","ask_amount","ask_price","bid_price","bid_amount"]
[1733422712348,29.41284604,239.39,239.3,23.776884]
[1733422712847,29.41284604,239.35,239.3,23.776884]
[1733422713874,29.41284604,239.39,239.3,23.776884]
[1733422714070,29.41284604,239.39,239.34,23.776884]
[1733422714242,29.41284604,239.35,239.3,23.776884]
[1733422714550,29.41284604,239.33,239.25,2.2577]
[1733422715975,29.41284604,239.31,239.25,2.2577]
[1733422716974,29.41284604,239.33,239.25,2.2577]
[1733422717365,29.41284604,239.33,239.26,23.776884]
[1733422719775,29.41284604,239.31,239.26,23.776884]
[1733422719974,29.41284604,239.29,239.26,23.776884]
[1733422720551,29.41284604,239.27,239.16,2.2319]
[1733422720851,29.41284604,239.23,239.16,2.2319]
[1733422721852,29.41284604,239.21,239.16,2.2319]
[1733422722070,29.41284604,239.19,239.16,2.2319]
[1733422722759,29.41284604,239.17,239.09,6.6426]
[1733422722958,29.41284604,239.15,239.09,6.6426]
[1733422723688,29.41284604,239.13,239.09,6.6426]
[1733422724972,29.41284604,239.13,239.1,23.776884]
[1733422725288,10.4502,239.23,239.08,2.2319]
[1733422725289,29.41284604,239.11,239.08,2.2319]
[1733422725572,29.41284604,239.13,239.08,2.2319]
[1733422726468,29.41284604,239.13,239.09,23.776884]
[1733422727580,29.41284604,239.11,239.08,2.2319]
[1733422728746,29.41284604,239.11,239.09,23.776884]
[1733422729076,29.41284604,239.13,239.09,23.776884]
[1733422730057,18.12429902,239.13,239.09,23.776884]
[1733422732876,7.82491533,239.27,239.09,23.776884]
[1733422732877,18.12429902,239.17,239.09,23.776884]
[1733422734087,18.12429902,239.19,239.09,23.776884]
[1733422734275,18.12429902,239.21,239.13,23.776884]
[1733422734471,18.12429902,239.19,239.13,23.776884]
[1733422736190,18.12429902,239.28,239.08,2.2319]
[1733422736191,18.12429902,239.15,239.08,2.2319]
[1733422736392,18.12429902,239.17,239.08,2.2319]
[1733422736564,18.12429902,239.19,239.08,2.2319]
[1733422736766,18.12429902,239.21,239.09,0.12549]
[1733422737081,18.12429902,239.19,239.09,0.12549]
[1733422737495,18.12429902,239.19,239.12,20.0]
[1733422737865,18.12429902,239.19,239.13,23.776884]
[1733422738688,18.12429902,239.17,239.13,23.776884]
[1733422742395,18.12429902,239.19,239.13,23.776884]
[1733422743516,18.12429902,239.14,239.03,6.0863]
[1733422743668,18.12429902,239.07,239.03,6.0863]
[1733422743875,18.12429902,239.09,239.03,6.0863]
[1733422744070,18.12429902,239.07,239.03,6.0863]
[1733422744679,18.12429902,239.09,239.03,6.0863]
[1733422744873,18.12429902,239.11,239.03,6.0863]
[1733422745077,18.12429902,239.13,239.03,6.0863]
[1733422745480,18.12429902,239.13,239.04,23.776884]
[1733422746684,18.12429902,239.15,239.08,23.902374]
[1733422747688,18.12429902,239.15,239.08,23.776884]
[1733422747905,18.12429902,239.13,239.08,23.776884]
[1733422748624,18.12429902,239.11,239.08,23.776884]
[1733422750491,18.12429902,239.15,239.08,23.776884]
[1733422751491,18.12429902,239.15,239.09,0.12549]
[1733422751694,18.12429902,239.22,239.14,23.776884]
[1733422752395,18.12429902,239.24,239.15,0.12549]
[1733422752599,18.12429902,239.24,239.17,23.776884]
[1733422752903,18.12429902,239.26,239.17,23.776884]
[1733422753119,18.12429902,239.28,239.17,23.776884]
[1733422753998,18.12429902,239.26,239.17,23.776884]
[1733422754199,18.12429902,239.28,239.2,20.0]
[1733422754402,10.4443,239.37,239.25,23.776884]
[1733422754403,18.12429902,239.3,239.25,23.776884]
[1733422755097,18.12429902,239.28,239.25,23.776884]
[1733422756399,18.12429902,239.26,239.19,20.0]
[1733422756603,18.12429902,239.26,239.16,6.4757]
[1733422756604,18.12429902,239.22,239.16,6.4757]
[1733422757611,18.12429902,239.24,239.16,6.4757]
[1733422757996,18.12429902,239.24,239.17,23.776884]
[1733422759014,18.12429902,239.22,239.17,23.776884]
[1733422760917,18.12429902,239.24,239.17,23.776884]
[1733422761094,18.12429902,239.28,239.2,20.0]
[1733422761296,18.12429902,239.28,239.21,23.776884]
[1733422763721,18.12429902,239.26,239.21,23.776884]
[1733422766023,18.12429902,239.28,239.21,23.776884]
[1733422766822,18.12429902,239.24,239.21,23.776884]
[1733422767414,18.12429902,239.24,239.17,23.776884]
[1733422769294,18.12429902,239.22,239.17,23.776884]
[1733422770235,18.12429902,239.28,239.18,0.12549]
[1733422770401,18.12429902,239.28,239.21,23.776884]
[1733422770601,18.12429902,239.28,239.18,0.12549]
[1733422771203,18.12429902,239.28,239.21,23.776884]
[1733422771803,18.12429902,239.28,239.24,0.12549]
[1733422772116,18.12429902,239.32,239.24,23.902374]
[1733422772925,18.09484175,239.33,239.24,23.902374]
[1733422773719,1.67111988,239.42,239.24,23.902374]
[1733422773720,18.09484175,239.37,239.29,6.2877]
[1733422774027,18.09484175,239.39,239.31,0.12549]
[1733422774202,18.09484175,239.41,239.33,20.0]
[1733422774399,18.09484175,239.39,239.34,23.776884]
[1733422775741,18.09484175,239.37,239.34,23.776884]
[1733422776024,18.09484175,239.35,239.34,23.776884]
[1733422776231,18.09484175,239.35,239.29,6.2877]
[1733422776404,18.09484175,239.4,239.29,6.2877]
[1733422776405,18.09484175,239.32,239.29,6.2877]
[1733422777014,18.09484175,239.32,239.16,0.62687842]
[1733422777015,18.09484175,239.32,239.23,8.248]
[1733422777253,18.09484175,239.3,239.23,8.248]
[1733422778212,18.09484175,239.34,239.24,0.12549]
[1733422778642,18.09484175,239.34,239.26,20.0]
[1733422778828,18.09484175,239.32,239.26,20.0]
[1733422779346,18.09484175,239.3,239.23,8.248]
[1733422780746,18.09484175,239.3,239.24,23.776884]
[1733422782549,18.09484175,239.32,239.24,23.776884]
[1733422782858,18.09484175,239.34,239.24,23.776884]
[1733422784048,11.30880129,239.34,239.24,23.776884]
[1733422787024,11.30880129,239.32,239.24,23.776884]
[1733422788429,11.30880129,239.3,239.23,8.248]
[1733422788628,11.30880129,239.26,239.23,2.197]
[1733422789250,11.30880129,239.28,239.23,2.197]
[1733422790232,11.30880129,239.32,239.24,23.776884]
[1733422794433,11.30880129,239.3,239.24,23.776884]
[1733422795398,11.30880129,239.28,239.23,2.197]
[1733422795552,11.30880129,239.3,239.23,2.197]
[1733422795749,135.9,239.33,239.24,23.776884]
[1733422796058,11.30880129,239.29,239.23,2.197]
[1733422799064,11.3134413,239.29,239.23,2.197]
[1733422799558,11.3134413,239.31,239.24,23.776884]
[1733422799765,147.2134413,239.33,239.24,23.776884]
[1733422800742,11.3134413,239.31,239.24,23.776884]
[1733422801839,135.9,239.33,239.24,23.776884]
[1733422802757,11.3134413,239.35,239.24,23.776884]
[1733422805364,135.9,239.44,239.28,0.12549]
[1733422805565,11.3134413,239.41,239.33,23.776884]
[1733422805960,11.3134413,239.39,239.33,23.776884]
[1733422806158,11.3134413,239.35,239.29,6.0348]
[1733422806563,11.3134413,239.35,239.27,20.0]
[1733422806751,11.3134413,239.33,239.27,20.0]
[1733422808442,10.4411,239.44,239.31,20.0]
[1733422808637,11.3134413,239.46,239.36,6.2436]
[1733422808842,11.3134413,239.46,239.37,23.776884]
[1733422809256,11.3134413,239.44,239.37,23.776884]
[1733422809460,11.3134413,239.39,239.36,6.2436]
[1733422809681,11.3134413,239.41,239.33,2.3052]
[1733422810557,11.3134413,239.41,239.34,23.776884]
[1733422810742,11.3134413,239.45,239.35,0.12549]
[1733422810951,11.3134413,239.45,239.37,20.0]
[1733422811650,135.9,239.46,239.37,20.0]
[1733422811860,135.9,239.46,239.35,0.12549]
[1733422811861,11.3134413,239.5,239.41,26.1097]
[1733422812064,11.3134413,239.48,239.41,26.1097]
[1733422812646,11.3134413,239.44,239.35,6.1097]
[1733422812846,11.3134413,239.44,239.38,20.0]
[1733422813249,11.3134413,239.46,239.38,20.0]
[1733422813446,135.9,239.51,239.42,20.0]
[1733422813668,11.3134413,239.54,239.46,20.0]
[1733422813874,11.3134413,239.54,239.47,6.0435]
[1733422814252,11.3134413,239.52,239.47,6.0435]
[1733422814681,135.9,239.56,239.47,6.0435]
[1733422814980,11.3134413,239.53,239.47,6.0435]
[1733422815469,11.3134413,239.55,239.47,6.0435]
[1733422817899,19.02743075,239.64,239.47,6.0435]
[1733422817900,11.3134413,239.51,239.47,6.0435]
[1733422818180,11.3134413,239.51,239.44,2.1516]
[1733422818367,11.3134413,239.53,239.45,0.12549]
[1733422818567,135.9,239.56,239.45,0.12549]
[1733422818958,11.3134413,239.55,239.45,0.12549]
[1733422819584,11.3134413,239.55,239.48,20.0]
[1733422820678,11.3134413,239.55,239.45,23.902374]
[1733422822362,11.3134413,239.59,239.49,0.12549]
[1733422822558,11.3134413,239.61,239.49,23.902374]
[1733422822874,11.3134413,239.63,239.54,0.12549]
[1733422823378,11.3134413,239.64,239.54,0.12549]
[1733422823579,11.3134413,239.66,239.54,0.12549]
[1733422824291,11.3134413,239.67,239.56,23.776884]
[1733422824591,11.3134413,239.67,239.57,0.12549]
[1733422824759,11.3134413,239.69,239.57,0.12549]
[1733422824960,11.3134413,239.67,239.57,0.12549]
[1733422825791,11.3134413,239.65,239.57,0.12549]
[1733422825960,11.3134413,239.67,239.56,23.776884]
[1733422826161,146.3281,239.74,239.58,2.2036]
[1733422826374,11.3134413,239.7,239.59,23.902374]
[1733422828089,11.3134413,239.72,239.59,23.902374]
[1733422828471,11.3134413,239.74,239.63,23.902374]
[1733422828663,11.3134413,239.76,239.65,0.12549]
[1733422828861,11.3134413,239.76,239.65,23.902374]
[1733422829663,11.3134413,239.72,239.64,2.3107]
[1733422829864,11.3134413,239.7,239.64,2.3107]
[1733422830064,11.3134413,239.68,239.64,2.3107]
[1733422830578,10.8988369,239.78,239.65,23.776884]
[1733422830787,11.3134413,239.76,239.65,23.776884]
[1733422831086,11.7858782,239.78,239.68,23.776884]
[1733422831463,11.3134413,239.76,239.68,23.776884]
[1733422832669,0.4724369,239.78,239.71,0.12549]
[1733422835797,11.7858782,239.78,239.7,23.776884]
[1733422836107,11.3134413,239.76,239.69,2.3104]
[1733422836273,11.7858782,239.78,239.69,2.3104]
[1733422837193,11.7858782,239.78,239.7,23.776884]
[1733422839889,11.7858782,239.78,239.69,2.3104]
[1733422840065,11.3134413,239.74,239.69,2.3104]
[1733422840261,11.3134413,239.72,239.69,2.3104]
[1733422841692,11.3134413,239.7,239.64,2.1136]
[1733422842285,11.3134413,239.72,239.64,2.1136]
[1733422842473,0.4724369,239.78,239.65,0.12549]
[1733422842789,11.7858782,239.78,239.65,0.12549]
[1733422842997,11.7858782,239.78,239.65,23.902374]
[1733422844492,11.3134413,239.74,239.65,23.902374]
[1733422844673,11.3134413,239.72,239.65,23.776884]
[1733422845078,11.3134413,239.72,239.64,2.1136]
[1733422845491,11.3134413,239.7,239.64,2.1136]
[1733422845673,11.3134413,239.75,239.65,0.12549]
[1733422845878,135.9,239.76,239.65,0.12549]
[1733422846387,135.9,239.76,239.65,20.12549]
[1733422846590,135.9,239.76,239.67,0.12549]
[1733422848500,0.4724369,239.78,239.67,0.12549]
[1733422852284,11.3134413,239.77,239.67,0.12549]
[1733422852813,11.3134413,239.73,239.64,2.1136]
[1733422854407,11.3134413,239.71,239.64,2.1136]
[1733422855699,11.3134413,239.72,239.64,2.1136]
[1733422856411,11.3134413,239.7,239.64,2.1136]
[1733422856706,11.3134413,239.72,239.64,2.1136]
[1733422857179,11.3134413,239.73,239.64,2.1136]
[1733422857886,11.3134413,239.71,239.64,2.1136]
[1733422861280,11.3134413,239.69,239.64,2.1136]
[1733422862132,11.3134413,239.65,239.58,2.3092]
[1733422862402,11.3134413,239.69,239.58,2.3092]
[1733422862810,11.3134413,239.73,239.62,0.12549]
[1733422863383,11.3134413,239.73,239.65,23.902374]
[1733422864809,11.3134413,239.71,239.65,23.902374]
[1733422864996,11.3134413,239.71,239.61,6.1697]
[1733422865206,11.3134413,239.73,239.66,0.12549]
[1733422865378,11.3134413,239.75,239.67,2.1582]
[1733422865708,11.3134413,239.75,239.68,23.776884]
[1733422866478,11.3134413,239.73,239.67,2.1582]
[1733422866886,11.3134413,239.75,239.67,2.1582]
[1733422867105,11.3134413,239.75,239.68,23.776884]
[1733422870209,10.4252,239.81,239.69,0.12549]
[1733422870412,11.3134413,239.82,239.71,23.902374]
[1733422870913,11.3134413,239.8,239.71,23.902374]
[1733422873620,146.3182,239.97,239.79,23.902374]
[1733422873814,11.3134413,239.9,239.79,23.902374]
[1733422874313,11.3134413,239.88,239.79,23.776884]
[1733422874815,11.3134413,239.91,239.8,0.12549]
[1733422875009,11.3134413,239.92,239.83,23.902374]
[1733422875211,11.3134413,239.9,239.83,23.902374]
[1733422876515,11.3134413,239.9,239.82,20.0]
[1733422876710,11.3134413,239.88,239.79,23.776884]
[1733422877212,11.3134413,239.9,239.8,0.12549]
[1733422878325,11.3134413,239.92,239.82,20.0]
[1733422878494,11.3134413,239.92,239.83,23.902374]
[1733422880899,11.3134413,239.94,239.83,23.902374]
[1733422881600,11.3134413,239.88,239.78,8.5383]
[1733422881809,11.3134413,239.9,239.79,23.776884]
[1733422882016,135.9,239.92,239.82,0.12549]
[1733422882216,135.9,239.92,239.82,23.902374]
[1733422882400,11.3134413,239.94,239.82,23.902374]
[1733422883238,135.9,239.97,239.86,0.12549]
[1733422883424,11.3134413,239.99,239.88,0.12549]
[1733422883733,11.3134413,239.95,239.86,20.0]
[1733422884104,11.3134413,239.93,239.86,20.0]
[1733422884413,11.3134413,239.95,239.86,20.0]
[1733422886638,11.3134413,239.93,239.86,20.0]
[1733422886816,11.3134413,239.91,239.83,6.3189]
[1733422887018,11.3134413,239.89,239.83,6.3189]
[1733422888220,135.9,239.88,239.83,6.3189]
[1733422888432,11.3134413,239.85,239.77,6.1058]
[1733422888740,147.2134413,239.83,239.77,6.1058]
[1733422888917,11.3134413,239.81,239.77,6.1058]
[1733422889839,11.3134413,239.78,239.75,2.1686]
[1733422890213,11.3134413,239.76,239.72,6.2567]
[1733422890448,147.2134413,239.76,239.69,2.1628]
[1733422891020,135.9,239.76,239.7,0.12549]
[1733422891638,135.9,239.76,239.7,23.902374]
[1733422892236,135.9,239.76,239.69,2.1628]
[1733422895146,135.9,239.76,239.7,0.12549]
[1733422895340,11.3134413,239.78,239.7,0.12549]
[1733422895549,135.9,239.84,239.72,23.902374]
[1733422895751,147.2134413,239.84,239.72,23.902374]
[1733422896548,11.3134413,239.84,239.72,23.902374]
[1733422898725,11.3134413,239.74,239.71,8.7711]
[1733422898929,11.3134413,239.74,239.71,2.2245]
[1733422899450,7.18206742,239.87,239.71,2.2245]
[1733422899451,147.2134413,239.78,239.71,2.2245]
[1733422901854,11.3134413,239.8,239.71,2.2245]
[1733422903739,11.3134413,239.78,239.71,2.2245]
[1733422904847,11.3134413,239.73,239.71,2.2245]
[1733422905141,135.9,239.72,239.66,8.7353]
[1733422905346,11.3134413,239.7,239.66,8.7353]
[1733422906536,135.9,239.71,239.66,8.7353]
[1733422906953,10.4261,239.79,239.67,0.12549]
[1733422907135,11.3134413,239.76,239.67,0.12549]
[1733422907658,11.3134413,239.74,239.67,0.12549]
[1733422908734,11.3134413,239.74,239.66,8.7353]
[1733422908938,135.9,239.77,239.66,8.7353]
[1733422909135,11.3134413,239.73,239.66,8.7353]
[1733422909359,11.3134413,239.75,239.66,8.7353]
[1733422910158,11.3134413,239.75,239.67,0.12549]
[1733422910354,147.2134413,239.77,239.67,0.12549]
[1733422910958,135.9,239.76,239.67,0.12549]
[1733422912160,11.3134413,239.77,239.67,0.12549]
[1733422915553,11.3134413,239.75,239.67,0.12549]
[1733422915963,11.3134413,239.73,239.66,8.7353]
[1733422916164,11.3134413,239.71,239.66,8.7353]
[1733422917163,11.3134413,239.71,239.66,2.1142]
[1733422922051,11.3134413,239.67,239.66,2.1142]
[1733422922267,11.3134413,239.67,239.61,6.0818]
[1733422924063,135.9,239.7,239.61,6.0818]
[1733422924269,147.2134413,239.7,239.62,23.902374]
[1733422924442,135.9,239.7,239.62,23.902374]
[1733422924652,147.2134413,239.7,239.62,23.902374]
[1733422925865,11.3134413,239.7,239.62,23.902374]
[1733422930874,135.9,239.71,239.62,23.902374]
[1733422932757,135.9,239.79,239.66,0.12549]
[1733422932979,135.9,239.81,239.68,0.12549]
[1733422933151,135.9,239.81,239.7,0.12549]
[1733422934075,11.3134413,239.82,239.68,24.52800778]
[1733422934985,11.3134413,239.78,239.68,23.902374]
[1733422935487,11.3134413,239.76,239.68,23.902374]
[1733422935671,11.3134413,239.74,239.67,6.5607]
[1733422936177,11.3134413,239.72,239.67,6.5607]
[1733422938056,135.9,239.78,239.68,23.902374]
[1733422938258,11.3134413,239.77,239.68,23.902374]
[1733422938657,11.3134413,239.75,239.68,23.902374]
[1733422940068,11.3134413,239.75,239.68,23.776884]
[1733422942070,147.2134413,239.77,239.68,23.776884]
[1733422943877,11.3134413,239.75,239.68,23.776884]
[1733422945880,20.8463,239.85,239.68,23.776884]
[1733422945881,135.9,239.83,239.69,0.12549]
[1733422946055,11.3134413,239.76,239.69,0.12549]
[1733422946485,11.3134413,239.74,239.68,23.776884]
[1733422947257,11.3134413,239.72,239.67,6.5607]
[1733422947459,11.3134413,239.7,239.65,2.1381]
[1733422947981,11.3134413,239.72,239.65,2.1381]
[1733422948971,11.3134413,239.68,239.65,2.1381]
[1733422953176,11.3134413,239.66,239.65,2.1381]
[1733422953767,11.3134413,239.66,239.54,0.62596724]
[1733422953768,11.3134413,239.66,239.59,2.169]
[1733422953967,11.3134413,239.64,239.59,2.169]
[1733422955764,11.3134413,239.62,239.56,6.2676]
[1733422956072,10.431,239.67,239.28,680.4]
[1733422956073,11.3134413,239.58,239.47,2.269]
[1733422956374,11.3134413,239.64,239.47,2.269]
[1733422956375,11.3134413,239.51,239.47,2.269]
[1733422956574,135.9,239.57,239.47,2.269]
[1733422956575,11.3134413,239.57,239.48,0.12549]
[1733422957187,11.3134413,239.55,239.47,2.269]
[1733422957490,11.3134413,239.53,239.47,2.269]
[1733422958094,11.3134413,239.55,239.47,2.269]
[1733422960556,11.3134413,239.53,239.47,2.269]
[1733422960985,11.3134413,239.55,239.47,2.269]
[1733422961280,11.3134413,239.55,239.48,23.902374]
[1733422961484,11.3134413,239.59,239.48,23.902374]
[1733422968588,11.3134413,239.61,239.48,23.902374]
[1733422969213,11.3134413,239.57,239.48,23.902374]
[1733422970094,11.3134413,239.55,239.48,23.776884]
[1733422970307,11.3134413,239.5,239.4,8.5583]
[1733422970508,11.3134413,239.44,239.4,2.152]
[1733422971708,11.3134413,239.42,239.4,2.152]
[1733422972395,7.23193649,239.42,239.4,2.152]
[1733422972714,7.23193649,239.42,239.35,6.4063]
[1733422973588,10.4402,239.46,239.35,6.4063]
[1733422973814,1.63311026,239.49,239.36,23.902374]
[1733422974112,11.29670706,239.45,239.36,23.902374]
[1733422976000,11.29670706,239.41,239.35,6.4063]
[1733422976505,11.29670706,239.45,239.36,0.12549]
[1733422976896,11.29670706,239.43,239.36,0.12549]
[1733422977201,11.29670706,239.43,239.35,6.4063]
[1733422977396,11.29670706,239.45,239.37,0.12549]
[1733422980120,11.29670706,239.45,239.36,23.776884]
[1733422980294,11.29670706,239.41,239.35,6.4063]
[1733422980993,11.29670706,239.42,239.35,6.4063]
[1733422981710,11.29670706,239.42,239.36,23.776884]
[1733422981909,10.4398,239.47,239.35,6.4063]
[1733422982119,11.29670706,239.38,239.35,6.4063]
[1733422982317,11.29670706,239.38,239.34,2.1164]
[1733422982520,11.29670706,239.36,239.3,6.086]
[1733422982827,11.29670706,239.34,239.3,6.086]
[1733422983490,11.29670706,239.34,239.28,2.2525]
[1733422983898,10.4436,239.38,239.28,2.2525]
[1733422984116,10.442,239.42,239.28,2.2525]
[1733422984324,11.29670706,239.37,239.28,2.2525]
[1733422985026,11.29670706,239.35,239.29,23.776884]
[1733422986032,11.29670706,239.37,239.29,23.776884]
[1733422987019,11.29670706,239.39,239.3,0.12549]
[1733422987227,147.19670706,239.41,239.3,0.12549]
[1733422987921,11.29670706,239.43,239.3,0.12549]
[1733422988111,11.29670706,239.45,239.32,0.12549]
[1733422988317,8.6869,239.55,239.31,6.93860887]
[1733422988318,11.29670706,239.51,239.34,23.902374]
[1733422988510,11.29670706,239.51,239.36,23.902374]
[1733422988712,11.29670706,239.49,239.36,23.902374]
[1733422990927,11.29670706,239.51,239.38,0.12549]
[1733422991147,11.29670706,239.53,239.4,23.902374]
[1733422991602,11.29670706,239.51,239.39,23.776884]
[1733422991803,11.29670706,239.51,239.38,23.776884]
[1733422992525,11.29670706,239.49,239.39,0.12549]
[1733422994622,11.29670706,239.51,239.39,0.12549]
[1733422995001,11.29670706,239.53,239.39,0.12549]
[1733422995202,11.29670706,239.51,239.39,0.12549]
[1733422997131,11.29670706,239.53,239.39,0.12549]
[1733422997529,11.29670706,239.55,239.43,0.12549]
[1733422997724,11.29670706,239.51,239.43,0.12549]
[1733422998106,11.29670706,239.49,239.43,0.12549]
[1733422999639,11.29670706,239.49,239.42,23.776884]
[1733423000020,11.29670706,239.47,239.42,23.776884]
[1733423000839,11.29670706,239.45,239.41,2.0873]
[1733423001222,11.29670706,239.43,239.41,2.0873]
[1733423002435,11.29670706,239.43,239.35,2.195]
[1733423002641,10.4412,239.44,239.35,2.195]
[1733423002642,11.29670706,239.4,239.35,2.195]
[1733423003135,11.29670706,239.36,239.3,2.2631]
[1733423003441,11.29670706,239.34,239.3,2.2631]
[1733423004235,11.29670706,239.38,239.31,0.12549]
[1733423004833,11.29670706,239.4,239.31,23.902374]
[1733423009217,11.29670706,239.42,239.31,23.902374]
[1733423010216,10.4392,239.49,239.31,29.75216595]
[1733423010217,11.29670706,239.44,239.31,29.75216595]
[1733423011617,11.29670706,239.48,239.33,23.902374]
[1733423011819,11.29670706,239.41,239.33,23.902374]
[1733423013124,11.29670706,239.39,239.33,23.902374]
[1733423013319,11.29670706,239.39,239.33,23.776884]
[1733423016319,11.29670706,239.37,239.32,2.239]
[1733423019946,11.29670706,239.39,239.32,2.239]
[1733423020147,7.23323524,239.4,239.33,23.776884]
[1733423020829,7.23323524,239.38,239.33,23.776884]
[1733423022550,7.23323524,239.4,239.33,23.776884]
[1733423023750,7.23323524,239.38,239.33,23.776884]
[1733423024749,7.23323524,239.36,239.32,2.239]
[1733423025423,7.23323524,239.38,239.32,2.239]
[1733423026056,7.23323524,239.35,239.32,2.239]
[1733423026457,7.23323524,239.37,239.32,2.239]
[1733423026756,7.23323524,239.38,239.32,2.239]
[1733423031051,7.23323524,239.38,239.27,6.3036]
[1733423031052,7.23323524,239.33,239.27,8.536]
[1733423031360,7.23323524,239.29,239.27,2.2324]
[1733423033757,7.23323524,239.29,239.22,23.776884]
[1733423033944,7.23323524,239.27,239.22,23.776884]
[1733423034140,7.23323524,239.27,239.21,8.6326]
[1733423034557,7.23323524,239.25,239.21,8.6326]
[1733423034842,7.23323524,239.25,239.21,2.2572]
[1733423038561,10.4456,239.34,239.22,23.776884]
[1733423039038,7.23323524,239.33,239.22,23.776884]
[1733423039241,7.23323524,239.31,239.22,23.776884]
[1733423039455,7.23323524,239.29,239.22,23.776884]
[1733423040368,7.23323524,239.27,239.21,2.2572]
[1733423041940,7.23323524,239.26,239.21,2.2572]
[1733423042140,7.23323524,239.25,239.21,2.2572]
[1733423042753,7.23323524,239.24,239.21,2.2572]
[1733423043247,7.23323524,239.22,239.18,0.4724369]
[1733423043756,7.23323524,239.21,239.18,0.4724369]
[1733423044058,7.23323524,239.22,239.18,0.4724369]
[1733423044254,7.23323524,239.2,239.18,0.4724369]
[1733423044646,10.4519,239.19,239.18,0.4724369]
[1733423044849,46.6180762,239.19,239.03,2.2574]
[1733423045058,7.23323524,239.08,239.03,2.2574]
[1733423047247,7.23323524,239.06,239.03,2.2574]
[1733423048352,11.33482338,239.05,239.03,2.2574]
[1733423048675,11.33482338,239.07,239.03,2.2574]
[1733423049367,11.33482338,239.09,239.03,2.2574]
[1733423050246,11.33482338,239.09,239.04,23.776884]
[1733423054650,11.33482338,239.11,239.04,23.776884]
[1733423056387,6.295,239.04,238.92,6.3031]
[1733423056668,10.4593,239.02,238.74,8.3569]
[1733423056879,11.33482338,238.95,238.74,8.98483709]
[1733423057075,11.33482338,238.93,238.74,8.98483709]
[1733423057274,0.6273631,238.92,238.74,8.98483709]
[1733423058972,11.33482338,238.91,238.75,23.776884]
[1733423059172,0.6273631,238.9,238.75,23.776884]
[1733423060377,11.33482338,238.88,238.75,23.776884]
[1733423061074,11.33482338,238.9,238.75,23.776884]
[1733423061280,0.6273631,238.89,238.75,23.776884]
[1733423061449,0.6273631,238.89,238.74,8.98483709]
[1733423061774,0.6273631,238.89,238.74,8.3569]
[1733423062079,11.33482338,238.88,238.74,8.3569]
[1733423062277,0.6273631,238.87,238.74,8.3569]
[1733423062450,11.33482338,238.86,238.74,8.3569]
[1733423062655,0.6273631,238.85,238.74,8.3569]
[1733423062976,11.96218648,238.85,238.74,8.3569]
[1733423063343,11.33482338,238.84,238.74,8.3569]
[1733423063545,0.6273631,238.83,238.74,8.3569]
[1733423064157,11.33482338,238.82,238.74,8.3569]
[1733423064458,0.6273631,238.81,238.74,8.3569]
[1733423065272,11.33482338,238.79,238.74,8.3569]
[1733423065479,0.6273631,238.78,238.74,8.3569]
[1733423066374,0.6273631,238.79,238.74,8.3569]
[1733423066586,11.96218648,238.79,238.74,8.3569]
[1733423066948,11.96218648,238.79,238.7,0.4724369]
[1733423066949,11.33482338,238.78,238.7,0.4724369]
[1733423067182,11.96218648,238.77,238.7,0.4724369]
[1733423067353,11.33482338,238.75,238.7,0.4724369]
[1733423067886,0.6273631,238.74,238.7,0.4724369]
[1733423069177,11.96218648,238.74,238.7,0.4724369]
[1733423069562,11.33482338,238.73,238.7,0.4724369]
[1733423070080,11.33482338,238.73,238.57,8.5536]
[1733423070081,23.776884,238.7,238.45,2.0684]
[1733423070392,11.33482338,238.47,238.37,2.1748]
[1733423070753,22.66964676,238.47,238.37,2.1748]
[1733423070959,11.33482338,238.38,238.28,6.6469]
[1733423071163,11.33482338,238.3,238.27,2.1748]
[1733423071369,11.33482338,238.28,238.17,6.5011]
[1733423071574,7.10128912,238.47,238.17,6.5011]
[1733423071575,7.10128912,238.47,238.23,0.03231169]
[1733423071768,11.33482338,238.32,238.23,0.03231169]
[1733423071971,0.6273631,238.43,238.18,0.62950159]
[1733423072178,18.24761115,238.27,238.18,0.62950159]
[1733423072356,18.24761115,238.25,238.17,6.5011]
[1733423072562,18.24761115,238.25,238.22,0.2688089]
[1733423072775,18.24761115,238.23,238.22,0.2688089]